bitfinex/quotes_ETHUSD_20240825
["timestamp","ask_amount","ask_price","bid_price","bid_amount"]
[1724586762111,3.62479,2758.8,2758.6,0.56710621]
[1724586762285,3.62479,2758.8,2758.7,0.56710621]
[1724586762482,4.6809858,2758.8,2758.7,0.56710621]
[1724586763008,4.6809858,2758.8,2758.3,3.62534]
[1724586763210,3.62479,2758.8,2758.7,0.56709897]
[1724586764694,3.62479,2758.8,2758.3,3.62534]
[1724586765018,3.62479,2758.8,2758.4,0.56710039]
[1724586765310,3.62479,2758.8,2758.5,0.56710039]
[1724586765469,3.62479,2758.8,2758.6,0.56710039]
[1724586765670,3.62479,2758.8,2758.3,3.62534]
[1724586765918,3.62479,2758.8,2758.4,0.56711557]
[1724586766076,3.62479,2758.8,2758.5,0.56711557]
[1724586766276,3.62479,2758.8,2758.6,0.56711557]
[1724586766473,3.62479,2758.8,2758.3,3.62534]
[1724586766705,3.62479,2758.8,2758.4,0.5671069]
[1724586766907,3.62479,2758.8,2758.5,0.5671069]
[1724586767107,3.62479,2758.8,2758.3,3.62534]
[1724586767108,3.62479,2758.8,2758.6,0.5671069]
[1724586767277,3.62479,2758.8,2758.3,3.62534]
[1724586768099,3.62479,2758.8,2758.4,0.5671154]
[1724586768298,3.62479,2758.8,2758.5,0.5671154]
[1724586768615,3.62479,2758.8,2758.6,0.56711299]
[1724586768916,3.62479,2758.8,2758.3,3.62534]
[1724586769111,3.62479,2758.8,2758.4,0.56711453]
[1724586769288,3.62479,2758.8,2758.5,0.56711453]
[1724586769612,3.62479,2758.8,2758.3,3.62534]
[1724586769817,3.62479,2758.8,2758.4,0.56711402]
[1724586770028,3.62479,2758.8,2758.3,3.62534]
[1724586770029,3.62479,2758.8,2758.5,0.56711402]
[1724586770313,3.62479,2758.8,2758.2,2.3888]
[1724586770502,3.62479,2758.8,2758.3,0.56712515]
[1724586770671,7.24965,2758.8,2758.4,0.56712562]
[1724586770876,4.585005,2758.8,2758.5,0.56712562]
[1724586771101,4.585005,2758.8,2758.2,6.01434]
[1724586771301,8.209855,2758.8,2758.3,0.56711352]
[1724586771516,2.4985,2758.7,2758.4,0.56711352]
[1724586771716,2.4985,2758.7,2758.5,0.56711352]
[1724586771892,2.4985,2758.7,2758.2,6.01434]
[1724586773217,6.12343,2758.7,2758.2,2.3888]
[1724586773399,6.12343,2758.7,2758.1,3.62558]
[1724586773400,7.098252,2758.7,2758.1,3.62558]
[1724586773929,3.62463,2758.9,2758.3,5.89371]
[1724586774089,8.40196771,2759.0,2758.4,3.6252]
[1724586774090,3.62457,2759.0,2758.4,3.6252]
[1724586774293,3.62479,2758.8,2758.3,5.89371]
[1724586774743,3.6249,2758.7,2758.2,3.62555]
[1724586775667,6.1234,2758.7,2758.1,5.89389]
[1724586776287,6.1234,2758.7,2758.1,9.51949]
[1724586778643,6.1234,2758.7,2758.1,5.89389]
[1724586780264,6.1234,2758.7,2758.1,10.471475]
[1724586780573,6.1234,2758.7,2758.1,6.845865]
[1724586781548,6.1234,2758.7,2758.1,10.471465]
[1724586782285,6.1234,2758.7,2758.1,6.845865]
[1724586783493,6.1234,2758.7,2758.1,10.471465]
[1724586783702,6.1234,2758.7,2758.1,6.845865]
[1724586784493,6.1234,2758.7,2758.1,10.471465]
[1724586785096,6.1234,2758.7,2758.1,6.845865]
[1724586785765,6.1234,2758.7,2758.1,4.577565]
[1724586786887,3.62502,2758.6,2758.1,4.577565]
[1724586788004,2.4748,2758.5,2758.0,3.6258]
[1724586789652,6.09996,2758.5,2757.9,3.62586]
[1724586789788,6.09996,2758.5,2757.9,7.25172]
[1724586789972,6.09996,2758.5,2757.9,3.62586]
[1724586790601,6.09996,2758.5,2757.9,7.25173]
[1724586792075,2.4748,2758.8,2758.3,3.62529]
[1724586793272,3.62496,2758.7,2758.1,3.62561]
[1724586794211,7.24997,2758.7,2758.1,3.62561]
[1724586794712,3.62503,2758.6,2758.1,3.62561]
[1724586797099,3.62496,2758.7,2758.1,3.6256]
[1724586797275,2.4748,2758.8,2758.3,3.62532]
[1724586797479,2.4748,2758.8,2758.3,6.00752]
[1724586798701,6.09957,2758.8,2758.3,6.00752]
[1724586799391,6.09957,2758.8,2758.3,2.3822]
[1724586800974,3.6249,2758.7,2758.3,2.3822]
[1724586805425,2.4748,2758.8,2758.2,3.62542]
[1724586805426,2.3312,2758.8,2758.2,3.62547]
[1724586805632,3.62496,2758.7,2758.2,3.62547]
[1724586805777,7.24995,2758.7,2758.2,3.62547]
[1724586806217,7.24995,2758.7,2758.1,3.49188011]
[1724586806431,7.24995,2758.7,2758.1,7.11756011]
[1724586807387,7.24995,2758.7,2758.2,0.54442929]
[1724586808193,3.62496,2758.7,2758.2,0.54442929]
[1724586808392,3.62496,2758.7,2758.1,7.11756011]
[1724586808694,3.62496,2758.7,2758.2,0.5444289]
[1724586809039,3.62496,2758.7,2758.1,7.11756011]
[1724586809239,3.62496,2758.7,2758.2,0.54442897]
[1724586809424,7.24994,2758.7,2758.1,7.11756011]
[1724586809594,7.24994,2758.7,2758.2,0.54442906]
[1724586809926,7.24994,2758.7,2758.1,7.11756011]
[1724586810128,7.24994,2758.7,2758.2,0.5444289]
[1724586810430,3.62496,2758.7,2758.1,7.11756011]
[1724586810632,3.62496,2758.7,2758.2,0.5444289]
[1724586810809,3.62496,2758.7,2758.1,7.11756011]
[1724586811133,3.62496,2758.7,2758.2,0.54443041]
[1724586811336,3.62496,2758.7,2758.1,7.11756011]
[1724586811530,3.62496,2758.7,2758.2,0.54443039]
[1724586811737,3.62496,2758.7,2758.1,7.11747011]
[1724586812037,3.62496,2758.7,2758.2,0.54442956]
[1724586812332,3.62496,2758.7,2758.1,10.74308011]
[1724586812632,3.62496,2758.7,2758.2,0.54442818]
[1724586812923,3.62496,2758.7,2758.1,7.11747011]
[1724586813129,3.62496,2758.7,2758.2,0.54442449]
[1724586813332,3.62496,2758.7,2758.1,10.74306011]
[1724586813543,3.62496,2758.7,2758.2,4.92319683]
[1724586813838,5.95564,2759.1,2758.5,3.62513]
[1724586814005,9.5801,2759.1,2758.5,3.62513]
[1724586816138,3.62444,2759.1,2758.5,7.25021]
[1724586816291,3.62444,2759.1,2758.5,4.66996671]
[1724586816637,9.74155937,2759.2,2758.6,2.4737]
[1724586816638,7.46,2759.2,2758.6,2.4737]
[1724586816937,7.46,2759.2,2758.7,3.62482]
[1724586819409,7.24833,2759.3,2758.7,3.62482]
[1724586819721,8.23665937,2759.5,2758.8,2.4565]
[1724586819922,9.57904,2759.5,2758.9,3.62461]
[1724586820123,3.62402,2759.4,2758.9,3.62461]
[1724586820493,8.28380138,2759.7,2758.9,3.62461]
[1724586820727,8.28353138,2759.9,2759.1,6.08073]
[1724586821038,8.28353138,2759.9,2759.1,2.4565]
[1724586821039,7.24726,2759.7,2759.1,2.4565]
[1724586821342,7.24726,2759.7,2759.1,6.08086]
[1724586821637,3.62359,2759.7,2759.1,6.08086]
[1724586823144,7.24727,2759.7,2759.1,6.08086]
[1724586823363,3.62385,2759.5,2758.9,6.08104]
[1724586823498,3.62385,2759.5,2759.0,3.62448]
[1724586824219,3.62404,2759.4,2758.9,2.4565]
[1724586825421,3.62404,2759.4,2758.8,3.62468]
[1724586826499,3.62404,2759.4,2758.9,3.62462]
[1724586826694,3.62385,2759.5,2758.9,3.62462]
[1724586827502,6.00389,2759.6,2759.0,3.62442]
[1724586827713,3.62385,2759.5,2759.0,3.62442]
[1724586833932,2.3801,2759.6,2759.0,3.62442]
[1724586834104,4.586387,2759.7,2759.2,3.62423]
[1724586834551,4.586387,2759.7,2759.1,3.62436]
[1724586834752,8.210067,2759.7,2759.1,3.62436]
[1724586835245,4.586387,2759.7,2759.1,3.62436]
[1724586835834,8.210037,2759.7,2759.1,3.62436]
[1724586836029,4.586387,2759.7,2759.1,3.62436]
[1724586838251,4.586387,2759.7,2759.1,7.24865]
[1724586839110,4.586387,2759.7,2759.2,3.62422]
[1724586839740,2.2911,2759.8,2759.3,3.62406]
[1724586841150,5.91456,2759.8,2759.3,3.62406]
[1724586843054,5.91456,2759.8,2759.1,7.24853]
[1724586843210,5.91456,2759.8,2759.2,4.19117463]
[1724586843407,5.91456,2759.8,2759.2,3.62423]
[1724586843648,7.614355,2759.8,2759.2,3.62423]
[1724586845446,7.614355,2759.8,2759.3,0.56694106]
[1724586845650,7.614355,2759.8,2759.2,3.62423]
[1724586845856,7.614355,2759.8,2759.3,0.56693139]
[1724586846055,7.614355,2759.8,2759.2,3.62423]
[1724586846263,0.642505,2759.7,2759.3,0.56693443]
[1724586846462,0.642505,2759.7,2759.2,3.62423]
[1724586846646,4.266085,2759.7,2759.3,0.56693392]
[1724586846851,4.266085,2759.7,2759.2,3.62423]
[1724586847052,4.266085,2759.7,2759.3,0.56693392]
[1724586847266,4.266085,2759.7,2759.2,3.62423]
[1724586847568,4.266085,2759.7,2759.3,0.56693392]
[1724586847768,4.266085,2759.7,2759.2,3.62423]
[1724586847935,4.266085,2759.7,2759.3,4.19102398]
[1724586847936,0.642505,2759.7,2759.3,4.19102398]
[1724586848130,2.2911,2759.8,2759.3,3.62409]
[1724586848321,2.2911,2759.8,2759.4,0.56692416]
[1724586848526,2.2911,2759.8,2759.3,3.62409]
[1724586848769,2.2911,2759.8,2759.4,0.56692695]
[1724586848929,2.2911,2759.8,2759.3,3.62409]
[1724586849128,5.91459,2759.8,2759.3,3.62409]
[1724586855975,5.91459,2759.8,2759.3,5.90039]
[1724586862787,11.81827961,2759.8,2759.2,3.62422]
[1724586862955,11.81827961,2759.8,2759.1,3.62424]
[1724586862956,2.28014961,2759.6,2759.1,3.62424]
[1724586863150,7.84238296,2759.8,2759.1,3.62424]
[1724586863151,2.28014961,2759.5,2759.1,3.62424]
[1724586863472,2.28014961,2759.5,2758.3,3.62532]
[1724586863473,2.2637,2759.0,2758.3,3.62532]
[1724586863786,0.41450704,2759.5,2757.9,0.56813361]
[1724586863787,5.88875,2758.6,2757.9,10.74658581]
[1724586863942,5.88875,2758.6,2758.0,3.62581]
[1724586864142,5.88875,2758.6,2757.7,0.5445022]
[1724586864143,3.62529,2758.4,2757.7,3.62616]
[1724586864344,3.62542,2758.3,2757.8,0.41706622]
[1724586864545,3.62577,2758.1,2757.4,3.62659]
[1724586864773,3.62577,2758.1,2756.8,4.38301223]
[1724586864774,2.3911,2757.9,2757.1,5.99497]
[1724586864942,3.62613,2757.8,2757.2,3.62686]
[1724586865344,3.62621,2757.7,2757.1,2.3681]
[1724586865536,3.62687,2757.2,2756.4,2.93650246]
[1724586865788,3.6266,2757.4,2756.4,2.93650246]
[1724586865789,2.3911,2757.5,2756.5,0.65644425]
[1724586866089,5.90602215,2757.7,2755.8,3.6976689]
[1724586866090,3.62753,2756.7,2756.0,3.62843]
[1724586866441,3.62753,2756.7,2755.9,3.62846]
[1724586866763,3.62753,2756.7,2756.0,3.62844]
[1724586867145,3.62753,2756.7,2755.8,6.0657889]
[1724586867384,3.62727,2756.9,2755.9,0.96945989]
[1724586867385,3.62766,2756.6,2755.9,0.96945989]
[1724586868547,3.62781,2756.5,2755.9,0.96945989]
[1724586871613,3.62766,2756.6,2755.9,0.96945989]
[1724586872461,3.62766,2756.6,2755.9,4.59800989]
[1724586873208,3.62741,2756.8,2756.1,3.6283]
[1724586873362,3.62741,2756.8,2756.2,0.36283]
[1724586873561,3.62728,2756.9,2756.2,0.36283]
[1724586873761,3.62728,2756.9,2756.2,3.99099]
[1724586875372,3.62742,2756.8,2756.2,3.99099]
[1724586876091,3.62742,2756.8,2756.2,0.36283]
[1724586876611,3.62788,2756.5,2755.8,2.4371289]
[1724586876788,3.62788,2756.5,2755.8,5.4371289]
[1724586877005,3.62788,2756.5,2755.8,9.0658289]
[1724586879196,3.62766,2756.6,2755.9,3.62856]
[1724586879407,3.62766,2756.6,2756.0,0.90656889]
[1724586885177,7.25544,2756.6,2756.0,0.90656889]
[1724586886809,3.62782,2756.5,2756.0,0.90656889]
[1724586887682,3.62793,2756.4,2756.0,0.90656889]
[1724586887880,3.62793,2756.4,2755.8,5.4371289]
[1724586888081,3.62841,2756.1,2755.8,0.0690289]
[1724586888288,6.04439,2756.2,2755.8,0.0690289]
[1724586888289,3.62845,2756.0,2755.8,0.0690289]
[1724586888968,3.62857,2755.9,2755.8,0.0690289]
[1724586889228,3.62845,2756.0,2755.8,0.0690289]
[1724586893861,6.04443,2756.2,2755.8,0.0690289]
[1724586894220,9.67272,2756.2,2755.8,0.0690289]
[1724586895508,3.62831,2756.1,2755.9,0.90831338]
[1724586895837,3.62831,2756.1,2755.8,0.0690289]
[1724586900744,3.62845,2756.0,2755.8,0.0690289]
[1724586900947,4.595566,2756.1,2755.8,0.0690289]
[1724586902036,3.62831,2756.1,2755.8,0.0690289]
[1724586903711,3.6282,2756.2,2755.8,0.0690289]
[1724586904711,3.62836,2756.1,2755.8,0.0690289]
[1724586906857,7.25627,2756.3,2755.8,0.0690289]
[1724586907051,3.62819,2756.2,2755.8,0.0690289]
[1724586909353,3.62819,2756.2,2755.9,0.56768596]
[1724586909655,3.62811,2756.3,2756.0,0.56768596]
[1724586909656,3.62832,2756.1,2756.0,0.56768596]
[1724586910555,3.62857,2755.9,2755.8,0.0690289]
[1724586910758,3.62857,2755.9,2755.8,0.63676859]
[1724586912332,3.62857,2755.9,2755.8,0.0690289]
[1724586912655,3.62857,2755.9,2755.8,0.63677822]
[1724586913204,7.25714,2755.9,2755.8,0.63677822]
[1724586913441,8.3010183,2755.9,2755.8,0.0690289]
[1724586923991,8.36425641,2755.9,2755.8,0.0690289]
[1724586925299,7.32037811,2755.9,2755.8,0.0690289]
[1724586939496,7.25714,2755.9,2755.8,0.0690289]
[1724586940380,7.25272668,2755.9,2755.8,0.0690289]
[1724586957176,3.62415668,2755.9,2755.8,0.0690289]
[1724586959717,9.53486216,2756.0,2755.8,0.0690289]
[1724586959917,3.62857,2755.9,2755.8,2.4850289]
[1724586963621,3.62857,2755.9,2755.8,0.0690289]
[1724586965416,7.25714,2755.9,2755.8,0.0690289]
[1724586965811,9.53626659,2755.9,2755.8,0.0690289]
[1724586966010,9.53688345,2755.9,2755.8,0.0690289]
[1724586967012,7.25714,2755.9,2755.8,0.0690289]
[1724586969610,5.90813345,2756.1,2755.8,2.71543179]
[1724586969827,2.27974345,2756.2,2755.8,2.4669289]
[1724586970133,7.25714,2755.9,2755.8,2.4669289]
[1724586970901,7.25714,2755.9,2755.8,0.0690289]
[1724586973301,3.62857,2755.9,2755.8,0.0690289]
[1724586973501,5.90768466,2756.1,2755.8,0.31572179]
[1724586973702,3.62827,2756.2,2755.9,2.3979]
[1724586974205,5.90756466,2756.2,2755.9,2.3979]
[1724586974411,3.62827,2756.2,2755.9,2.3979]
[1724586977251,3.62811,2756.3,2755.9,2.3979]
[1724586977252,3.62831,2756.1,2755.9,2.3979]
[1724586977661,3.62832,2756.1,2755.8,0.0690289]
[1724586977802,3.62857,2755.9,2755.8,0.0690289]
[1724586980545,7.25675,2756.1,2755.8,0.0690289]
[1724586980853,3.62847,2756.0,2755.8,0.0690289]
[1724586981159,3.62832,2756.1,2755.8,0.31572179]
[1724586981449,5.9045859,2756.7,2756.1,3.62824]
[1724586981653,3.62758,2756.7,2756.2,5.91255]
[1724586981861,3.62758,2756.7,2756.2,2.2844]
[1724586982619,3.62774,2756.6,2756.2,2.2844]
[1724586982929,3.62774,2756.6,2756.2,2.875672]
[1724586983307,3.6278,2756.5,2756.2,2.875672]
[1724586983524,3.6278,2756.5,2756.2,2.2844]
[1724586983722,7.25571,2756.5,2756.2,2.2844]
[1724586986242,3.62792,2756.4,2756.2,2.2844]
[1724586987644,3.62795,2756.4,2756.2,2.2844]
[1724586987855,3.62795,2756.4,2756.2,2.51284]
[1724586989163,3.62795,2756.4,2756.2,2.27636268]
[1724586990771,3.6278,2756.5,2756.2,2.27636268]
[1724586990970,7.2557,2756.5,2756.2,2.27636268]
[1724586991465,3.6278,2756.5,2756.2,2.27636268]
[1724586991656,7.25567,2756.5,2756.2,2.27636268]
[1724586992256,3.6278,2756.5,2756.2,2.27636268]
[1724586993271,3.62794,2756.4,2756.2,2.27636268]
[1724586995241,3.62805,2756.3,2756.2,2.27636268]
[1724587000784,3.62822,2756.2,2755.9,2.4652]
[1724587000979,3.62822,2756.2,2756.0,0.56765062]
[1724587001191,3.62822,2756.2,2755.9,2.4652]
[1724587001506,3.62822,2756.2,2756.0,0.56765012]
[1724587001815,3.62822,2756.2,2755.9,2.4652]
[1724587002105,3.62822,2756.2,2756.0,0.56764466]
[1724587002311,3.62822,2756.2,2755.9,2.4652]
[1724587002514,3.62822,2756.2,2756.0,0.56763928]
[1724587002824,3.62822,2756.2,2755.9,2.4652]
[1724587002975,3.62822,2756.2,2756.0,0.56764382]
[1724587003174,3.62822,2756.2,2755.9,2.4652]
[1724587003374,3.62822,2756.2,2756.0,0.5676429]
[1724587003609,3.62822,2756.2,2756.1,0.5676429]
[1724587005216,3.62822,2756.2,2756.1,0.56764237]
[1724587005374,7.25593,2756.4,2756.1,0.56764237]
[1724587005575,3.62793,2756.4,2755.9,2.4652]
[1724587005801,3.62793,2756.4,2756.0,1.1839313]
[1724587005981,3.62793,2756.4,2756.1,0.56763941]
[1724587006187,3.62793,2756.4,2755.9,2.4652]
[1724587006387,7.25595,2756.4,2756.0,0.56763931]
[1724587006709,3.62793,2756.4,2756.1,0.56763931]
[1724587006883,3.62793,2756.4,2755.9,2.3292]
[1724587007086,3.62793,2756.4,2756.1,2.3292]
[1724587007291,3.62793,2756.4,2756.2,0.56763525]
[1724587007599,3.62793,2756.4,2756.1,2.3292]
[1724587007931,3.62793,2756.4,2756.2,0.56762278]
[1724587008085,3.6277,2756.6,2756.1,2.3292]
[1724587008285,11.08744,2756.8,2756.1,2.3292]
[1724587008286,11.08748,2756.8,2756.4,2.3292]
[1724587009900,3.62753,2756.7,2756.4,2.3292]
[1724587012403,7.25498,2756.8,2756.4,2.3292]
[1724587012599,3.62748,2756.8,2756.5,0.56758061]
[1724587012799,3.62752,2756.7,2756.4,2.3292]
[1724587013399,3.62752,2756.7,2756.5,0.56758338]
[1724587013704,3.62752,2756.7,2756.6,0.56758338]
[1724587013907,3.62752,2756.7,2756.4,2.3292]
[1724587014225,3.62752,2756.7,2756.5,0.56757257]
[1724587014419,3.62752,2756.7,2756.4,2.3292]
[1724587014625,3.62752,2756.7,2756.5,0.56756621]
[1724587014829,3.62752,2756.7,2756.4,2.3292]
[1724587015000,3.62752,2756.7,2756.5,0.56756629]
[1724587015200,3.62752,2756.7,2756.4,2.3292]
[1724587015658,3.62752,2756.7,2756.5,0.56756647]
[1724587015833,3.62752,2756.7,2756.4,2.3292]
[1724587016162,3.62752,2756.7,2756.5,0.56756965]
[1724587016335,3.62752,2756.7,2756.4,2.3292]
[1724587016684,3.62752,2756.7,2756.5,0.56757023]
[1724587016829,3.62752,2756.7,2756.4,2.3292]
[1724587017029,3.62752,2756.7,2756.5,0.56756991]
[1724587017230,3.62752,2756.7,2756.4,2.3292]
[1724587017465,3.62752,2756.7,2756.5,0.56757016]
[1724587017731,7.25514,2756.7,2756.4,2.3292]
[1724587017961,7.25514,2756.7,2756.5,0.56757039]
[1724587018162,7.25514,2756.7,2756.4,2.3292]
[1724587018163,3.62752,2756.7,2756.4,2.3292]
[1724587018476,7.25513,2756.7,2756.5,0.56757047]
[1724587018631,7.25513,2756.7,2756.4,2.3292]
[1724587018826,7.25513,2756.7,2756.5,0.56757041]
[1724587019049,7.25513,2756.7,2756.4,2.3292]
[1724587020391,3.62795,2756.4,2756.2,2.4122]
[1724587020691,3.62835,2756.1,2755.9,2.4122]
[1724587020860,3.62835,2756.1,2755.8,0.0690289]
[1724587020861,3.62835,2756.1,2756.0,0.567654]
[1724587021064,7.25676,2756.1,2756.0,0.567654]
[1724587021386,3.62857,2755.9,2755.8,0.0690289]
[1724587021607,8.215373,2755.9,2755.8,0.0690289]
[1724587049941,14.131243,2755.9,2755.8,0.0690289]
[1724587060991,8.215373,2755.9,2755.8,0.0690289]
[1724587068084,10.48450546,2755.9,2755.8,0.0690289]
[1724587068602,8.215373,2755.9,2755.8,0.0690289]
[1724587069376,10.49214889,2755.9,2755.8,0.0690289]
[1724587069712,10.49214244,2755.9,2755.8,0.0690289]
[1724587071410,9.53390944,2755.9,2755.8,0.0690289]
[1724587071715,7.25714,2755.9,2755.8,0.0690289]
[1724587072275,9.53390944,2755.9,2755.8,0.0690289]
[1724587075879,9.53390944,2755.9,2755.8,2.3245289]
[1724587075880,3.62857,2755.9,2755.8,2.3245289]
[1724587078305,7.25714,2755.9,2755.8,2.3245289]
[1724587078507,7.25714,2755.9,2755.8,0.0690289]
[1724587088597,12.20816761,2755.9,2755.8,0.0690289]
[1724587089016,8.57959761,2755.9,2755.8,0.0690289]
[1724587089619,7.25714,2755.9,2755.8,0.0690289]
[1724587113775,7.25714,2755.9,2755.6,2.2555]
[1724587113776,3.62884,2755.7,2755.6,2.2555]
[1724587113944,3.62884,2755.7,2755.6,2.8232566]
[1724587115372,3.62884,2755.7,2755.6,0.5677566]
[1724587115965,3.6291,2755.5,2755.4,2.2674]
[1724587116175,3.6291,2755.5,2755.2,2.2674]
[1724587116176,3.6294,2755.3,2755.2,2.2674]
[1724587116341,3.6294,2755.3,2755.2,0.56785218]
[1724587116846,3.62963,2755.1,2755.0,0.1089449]
[1724587117153,3.62963,2755.1,2755.0,0.67684203]
[1724587119245,3.62963,2755.1,2755.0,0.67684164]
[1724587121948,3.62955,2755.2,2755.0,0.67684164]
[1724587122282,3.62955,2755.2,2755.0,0.1089449]
[1724587125682,3.62963,2755.1,2755.0,0.1089449]
[1724587127296,3.62979,2755.0,2754.5,0.60846859]
[1724587127795,6.00855,2755.2,2754.5,8.65619245]
[1724587128163,3.62964,2755.1,2754.5,5.02578245]
[1724587130166,3.62976,2755.0,2754.5,5.02578245]
[1724587137592,6.00855,2755.2,2754.6,3.63028]
[1724587137593,3.62963,2755.1,2754.6,3.63028]
[1724587137935,3.62963,2755.1,2754.6,0.86560325]
[1724587138103,3.62963,2755.1,2754.5,4.23878859]
[1724587139422,3.62963,2755.1,2754.6,4.19821356]
[1724587139626,3.62963,2755.1,2754.7,0.56792356]
[1724587139829,3.62963,2755.1,2754.6,3.63029]
[1724587140146,3.62963,2755.1,2754.7,0.56792049]
[1724587140434,3.62963,2755.1,2754.6,3.63029]
[1724587140595,3.62963,2755.1,2754.7,0.56792049]
[1724587140792,3.62963,2755.1,2754.6,4.05416586]
[1724587140995,3.62963,2755.1,2754.7,0.56792052]
[1724587141304,3.62963,2755.1,2754.6,4.05416586]
[1724587141508,3.62963,2755.1,2754.7,0.56792052]
[1724587141708,3.62963,2755.1,2754.6,4.05416586]
[1724587141922,3.62963,2755.1,2754.7,0.56791907]
[1724587142121,3.62963,2755.1,2754.8,0.567919]
[1724587142298,3.62963,2755.1,2754.6,4.05416586]
[1724587142498,3.62963,2755.1,2754.7,0.56791907]
[1724587142834,3.62963,2755.1,2754.8,0.56791907]
[1724587143039,3.62963,2755.1,2754.6,4.05416586]
[1724587143203,3.62963,2755.1,2754.7,0.56791894]
[1724587143402,3.62963,2755.1,2754.6,4.05416586]
[1724587143603,3.62963,2755.1,2754.7,0.56791901]
[1724587143828,3.62963,2755.1,2754.8,0.56791901]
[1724587144137,3.62963,2755.1,2754.6,4.05416586]
[1724587144295,7.25934,2755.1,2754.7,0.56791894]
[1724587144501,3.62963,2755.1,2754.8,0.56791894]
[1724587144713,3.62963,2755.1,2754.6,4.05416586]
[1724587145047,3.62963,2755.1,2754.7,0.56791897]
[1724587145253,3.62963,2755.1,2754.8,0.56791897]
[1724587145559,3.62963,2755.1,2754.9,0.56791897]
[1724587145904,3.62977,2755.0,2754.4,3.63047]
[1724587146322,3.62977,2755.0,2754.4,4.599232]
[1724587146938,3.62977,2755.0,2754.4,8.229712]
[1724587147340,3.62977,2755.0,2754.5,0.56793423]
[1724587147643,3.62977,2755.0,2754.6,0.56793423]
[1724587147844,3.62977,2755.0,2754.4,8.229712]
[1724587148548,3.62977,2755.0,2754.4,4.599232]
[1724587149041,3.62977,2755.0,2754.4,8.229712]
[1724587149645,3.62977,2755.0,2754.4,4.599232]
[1724587150207,3.62977,2755.0,2754.4,8.229712]
[1724587150407,3.62977,2755.0,2754.4,4.599232]
[1724587150832,2.4071,2754.9,2754.4,4.599232]
[1724587152140,2.4071,2754.9,2754.4,8.229702]
[1724587152539,2.4071,2754.9,2754.5,3.63041]
[1724587152743,2.4071,2754.9,2754.5,4.6960142]
[1724587162152,3.62963,2755.1,2754.5,4.6960142]
[1724587162451,9.55554,2755.1,2754.5,4.6960142]
[1724587163960,5.92583,2755.1,2754.5,4.6960142]
[1724587166277,5.92583,2755.1,2754.6,3.63027]
[1724587169463,5.92583,2755.1,2754.6,6.01697]
[1724587170796,17.06594064,2755.3,2754.6,6.981714]
[1724587171009,7.52325064,2755.3,2754.7,2.3867]
[1724587171149,7.46,2755.3,2754.8,3.62995]
[1724587171486,7.46,2755.3,2754.8,4.3280894]
[1724587172783,7.46,2755.3,2754.8,7.9580394]
[1724587173079,7.46,2755.3,2754.8,4.3280894]
[1724587173320,7.46,2755.3,2754.9,3.5298]
[1724587173679,3.62933,2755.4,2754.9,3.5298]
[1724587173987,3.62933,2755.4,2754.9,1.02445794]
[1724587175158,3.62932,2755.4,2754.9,1.02445794]
[1724587175361,5.91325,2755.3,2754.7,2.3867]
[1724587175663,7.25915,2755.2,2754.6,3.63018]
[1724587176273,3.62957,2755.2,2754.6,3.63018]
[1724587176850,3.62957,2755.2,2754.6,4.594917]
[1724587177265,2.2838,2755.3,2754.6,4.594917]
[1724587177583,3.62931,2755.4,2754.9,3.62987]
[1724587178167,3.62931,2755.4,2754.8,6.0167]
[1724587178480,3.62931,2755.4,2754.8,5.9167]
[1724587178866,3.62931,2755.4,2754.8,9.54662]
[1724587179071,3.62931,2755.4,2754.8,6.9678357]
[1724587179982,3.62931,2755.4,2754.8,10.5977857]
[1724587180667,3.62931,2755.4,2754.8,6.9678357]
[1724587180899,11.08898,2755.6,2755.2,3.62949]
[1724587180900,2.3384,2755.6,2755.2,3.62949]
[1724587181118,2.3384,2755.6,2754.9,2.371]
[1724587181119,2.3384,2755.6,2755.1,3.62955]
[1724587181319,2.3384,2755.6,2755.1,4.592587]
[1724587182306,5.96741,2755.6,2755.1,3.62955]
[1724587188100,9.59649,2755.6,2754.9,9.63059]
[1724587188310,9.59649,2755.6,2755.0,0.90850795]
[1724587188520,9.59649,2755.6,2755.1,0.90850795]
[1724587188731,9.59649,2755.6,2754.9,9.63059]
[1724587188895,9.59649,2755.6,2755.0,5.60642956]
[1724587189091,9.59649,2755.6,2755.1,0.90850659]
[1724587189398,9.59649,2755.6,2755.0,4.69792257]
[1724587189596,5.96741,2755.6,2755.1,0.90850772]
[1724587189794,9.59649,2755.6,2755.0,4.69792257]
[1724587189995,5.96741,2755.6,2755.0,4.69792257]
[1724587190414,9.59646,2755.6,2755.0,4.69792257]
[1724587191129,9.59647,2755.6,2755.0,4.69792257]
[1724587191731,6.933471,2755.6,2754.8,3.63002]
[1724587191914,7.25866,2755.4,2754.8,3.63002]
[1724587192122,7.25865,2755.4,2754.8,3.63002]
[1724587192323,3.62932,2755.4,2754.8,3.63002]
[1724587192520,3.62932,2755.4,2754.9,0.963742]
[1724587193632,2.3258,2755.5,2754.9,0.963742]
[1724587193633,2.3258,2755.5,2754.9,4.593592]
[1724587193839,5.95465,2755.7,2755.2,3.62946]
[1724587201825,3.62885,2755.7,2755.2,3.62946]
[1724587203428,3.62899,2755.6,2755.1,0.34067296]
[1724587203632,5.89124,2755.9,2755.4,3.62922]
[1724587204336,3.62836,2756.1,2755.4,4.3890943]
[1724587204535,3.62854,2756.0,2755.4,4.3890943]
[1724587205045,2.3308,2756.2,2755.7,3.62877]
[1724587205248,3.62782,2756.5,2755.9,3.62855]
[1724587205249,2.3308,2756.4,2755.9,3.62855]
[1724587205557,3.62758,2756.7,2756.1,3.62824]
[1724587205558,3.62762,2756.7,2756.1,3.62824]
[1724587205732,0.958589,2756.7,2756.1,3.62824]
[1724587205932,3.62774,2756.6,2755.9,7.25703]
[1724587206138,2.3308,2756.5,2756.0,3.62841]
[1724587206646,2.3308,2756.5,2755.8,3.6287]
[1724587206831,2.3308,2755.8,2755.2,3.62936]
[1724587207033,5.95951,2755.8,2755.3,0.362936]